{"text_format":"3","workbook":"xlsx","n_sheets":4,"sheets":["Единый график","Доп. инфомрация","Лист1","Лист2"],"read":"whole","date_system":"1900"}

{"sheet":"Единый график","index":0,"n_rows":40,"n_cols":51,"rows_kept":40,"merged":[[1,1,1,3],[1,9,1,23],[1,25,3,25],[1,26,1,27],[2,0,2,8],[2,9,4,23],[2,26,2,27],[3,0,3,1],[3,2,3,3],[3,4,3,5],[3,7,3,8],[3,26,3,27],[4,0,4,1],[4,2,4,3],[4,4,4,5],[4,7,4,8],[5,0,5,1],[5,2,5,5],[6,0,7,0],[6,1,7,1],[6,2,7,2],[6,3,6,23],[6,25,6,56]]}
["Единый график проведения оценочных процедур"]
["НП","Алапаевск",null,null,"ОО","3207",null,"МОУО","32","Положения Рекоменадций Рособрнадзора ",{"$nulls":15},"Уровни \nОП ","Федеральный"]
["Утверждено",{"$nulls":8},"- проводить оценочные процедуры по каждому учебному предмету в одной параллели классов не чаще 1 раза в 2,5 недели. При этом объем учебного времени, затрачиваемого на проведение оценочных  процедур, не должен превышать 10% от всего объема учебного времени, отводимого на изучение данного учебного предмета в данной параллели в текущем учебном году\n- не проводить для обучающихся одного класса более одной оценочной процедуры в день, не проводить оценочные процедуры на первом и последнем уроках, за исключением учебных\n- предметов, по которым проводится не более 1 урока в неделю, причем этот урок является первым или последним в расписании\n- не проводить оценочные процедуры на первом и последнем уроках, за исключением учебных предметов, по которым проводится не более 1 урока в неделю, причем этот урок является первым или последним в расписании",{"$nulls":16},"Региональный"]
["Приказ №",null,"№ 01-10/369-од           ",null,"Приказ об изменениях",{"$nulls":21},"ОО"]
["Дата утверждения",null,"2025-10-31",null,"Дата изменений "]
["Период"]
["Класс","Форма освоения","Кол-во ОП в указанном периоде","ноябрь",{"$nulls":21},"декабрь"]
[{"$nulls":3},5,6,7,8,10,11,12,13,14,15,17,18,19,20,21,22,24,25,26,27,28,29,1,2,3,4,5,6,8,9,10,11,12,13,15,16,17,18,19,20,22,23,24,25,26,27,29,30]
["2а","база",{"$f":"COUNTA(#REF!)","v":1},null,null,"КР мат",{"$nulls":3},"КР лит чт",{"$nulls":3},"Д рус",{"$nulls":6},"КР окр м",{"$nulls":16},"КР англ","КР рус","КР окр м","КР мат",{"$nulls":3},"КР лит чт"]
["2б","база",{"$f":"COUNTA(#REF!)","v":1},null,null,"КР мат",null,null,"КР лит чт",null,null,"Д рус",{"$nulls":5},"КР окр м",{"$nulls":18},"КР англ",null,"КР рус",null,"КР мат",{"$nulls":3},"КР лит чт"]
["2в","база",{"$f":"COUNTA(#REF!)","v":1},null,"КР мат",null,null,"КР лит чт",{"$nulls":6},"Д рус",{"$nulls":5},"КР окр м",{"$nulls":15},"КР англ","КР окр м","КР рус",null,"КР мат",{"$nulls":3},"КР лит чт"]
[]
["3а","база",{"$f":"COUNTA(#REF!)","v":1},null,"КР мат",{"$nulls":3},"Д рус",null,null,"КР лит",null,null,"КР окр м",{"$nulls":20},"КР англ",null,null,"КР рус",null,"КР мат","КР окр м",null,null,"КР лит чт"]
["3б","база",{"$f":"COUNTA(#REF!)","v":1},{"$nulls":33},"КР англ",null,"КР рус",null,"КР мат",{"$nulls":3},"КР лит чт"]
["3в","база",{"$f":"COUNTA(#REF!)","v":1},{"$nulls":33},"КР англ",null,"КР рус",null,"КР мат",{"$nulls":3},"КР лит чт"]
[]
["4а","база",{"$f":"COUNTA(#REF!)","v":1},{"$nulls":33},"КР англ",null,"КР мат",null,"КР рус",null,null,"КР инф","КР лит чт"]
["4б","база",1,{"$nulls":33},"КР англ",null,"КР мат",null,"КР рус",{"$nulls":3},"КР лит чт"]
["4в","база",{"$f":"COUNTA(#REF!)","v":1},{"$nulls":14},"КР мат",{"$nulls":5},"Д рус",{"$nulls":3},"КР лит чт",{"$nulls":9},"КР англ","КР мат",null,"КР рус",{"$nulls":3},"КР лит чт"]
[]
["5а","база",{"$f":"COUNTA(#REF!)","v":1},{"$nulls":4},"КР мат",{"$nulls":6},"КР био",null,null,"КР лит",{"$nulls":18},"КР англ",{"$nulls":4},"КР мат",null,null,"КР лит"]
["5б","база",{"$nulls":12},"КР био",{"$nulls":21},"КР лит"]
["5в","база",{"$f":"COUNTA(#REF!)","v":1},{"$nulls":5},"КР рус",{"$nulls":5},"КР био",{"$nulls":21},"КР англ",{"$nulls":6},"КР рус"]
[]
["6а","база",{"$f":"COUNTA(#REF!)","v":1},{"$nulls":11},"КР био",null,null,"КР мат"]
["6б","база",{"$f":"COUNTA(#REF!)","v":1},{"$nulls":11},"КР био","КР рус",null,"КР мат",{"$nulls":27},"КР рус"]
["6в","база",{"$f":"COUNTA(#REF!)","v":1},{"$nulls":11},"КР био","КР рус",null,"КР мат",{"$nulls":27},"КР рус"]
[]
["7а","база",{"$f":"COUNTA(#REF!)","v":1},{"$nulls":8},"КР рус",{"$nulls":3},"КР био",{"$nulls":3},"КР физ",{"$nulls":21},"КР рус",null,"КР физ"]
["7б","база",{"$f":"COUNTA(#REF!)","v":1},{"$nulls":8},"КР рус",{"$nulls":3},"КР био",{"$nulls":3},"КР физ",{"$nulls":21},"КР рус",null,"КР физ"]
[]
["8а","база",{"$f":"COUNTA(#REF!)","v":1},{"$nulls":4},"КР ист",{"$nulls":6},"КР общ",{"$nulls":4},"КР хим","КР физ",{"$nulls":13},"КР ист","КР геом",null,null,"КР общ","КР алг",null,null,"КР ОБЗР","КР хим","КР физ"]
["8б","база",{"$f":"COUNTA(#REF!)","v":1},{"$nulls":11},"КР общ",{"$nulls":4},"КР хим","КР физ",{"$nulls":13},"КР геом",{"$nulls":3},"КР общ","КР алг",null,null,"КР ОБЗР","КР хим","КР физ"]
[]
["9а","база",{"$f":"COUNTA(#REF!)","v":1},{"$nulls":8},"Инф Статград",null,"КР физ","ЗЧ био",null,"КР ист","КР общ",null,"КР хим",{"$nulls":5},"ЗЧ био",{"$nulls":9},"КР общ","ЗЧ био","КР физ",null,null,"КР ист",null,null,"КР хим","КР ОБЗР"]
["9б","база",{"$f":"COUNTA(#REF!)","v":1},{"$nulls":6},"КР рус",null,"Инф Статград",null,"КР физ","ЗЧ био",null,"КР ист","КР общ",null,"КР хим",{"$nulls":3},"КР мат",null,"ЗЧ био",{"$nulls":9},"КР общ","ЗЧ био","КР физ","КР рус",null,"КР ист",null,null,"КР хим","КР ОБЗР"]
["9в","база",{"$f":"COUNTA(#REF!)","v":1},{"$nulls":8},"Инф Статград",null,"КР физ","ЗЧ био","КР геом","КР ист","КР общ",null,"КР хим","КР алг",{"$nulls":4},"ЗЧ био",{"$nulls":9},"КР общ","ЗЧ био","КР физ",null,"КР геом","КР ист",null,null,"КР хим","КР ОБЗР"]
[]
[10,"база",{"$f":"COUNTA(#REF!)","v":1},{"$nulls":7},"КР общ",null,null,"КР ист",{"$nulls":23},"КР ист","КР био","КР хим",null,"КР общ",{"$nulls":3},"КР ОБЗР"]
[11,"база",{"$f":"COUNTA(#REF!)","v":1},{"$nulls":11},"КР общ",{"$nulls":4},"КР ист",{"$nulls":18},"КР общ","КР хим",null,null,"КР ОБЗР","КР ист"]

{"sheet":"Доп. инфомрация","index":1,"n_rows":27,"n_cols":1,"rows_kept":27}
["Сопроводительное письмо к примерному единому графику оценочных процедур"]
[]
["1. В целях оптимизации количества контрольных, проверочных и иных диагностических работ (далее – оценочные процедуры или ОП) и формирования общих подходов к определению временных объемов, количества и графика проведения оценочных процедур, а также в целях обеспечения открытости и доступности информации о системе образования разработан примерный единый график оценочных процедур (далее – примерный график). Примерный график предоставляется в формате электронной таблицы Excel."]
["2. Содержание примерного графика основывается на Письме Министерства просвещения Российской Федерации № СК 228/03 и Федеральной службы по надзору в сфере образования и науки № 01-169/08-01 от 6 августа 2021 года (далее – Рекомендации), которое определяет рекомендации для использования в работе с муниципальными органами управления образования и общеобразовательными организациями, а также на результатах  регионального мониторинга количества контрольных работ в Свердловской области в рамках Государственного задания ГАОУ ДПО СО «Институт развития образования» на 2022 год, утвержденного 24.12.2021 года по «Сопровождению региональной системы оценки качества образования»."]
["3. Примерный график содержит следующие заполняемые поля в верхней части (шапке) таблицы:"]
["·        Населенный пункт (НП);"]
["·        Номер ОО;"]
["·        Код МОУО;"]
["·        Номер приказа ОО об утверждении единого графика ОП;"]
["·        Дата утверждения приказа ОО об утверждении единого графика;"]
["·        Номер приказа ОО об внесении изменений в уже опубликованный единый график ОП;"]
["·        Дата утверждения приказа ОО об внесении изменений в уже опубликованный единый график ОП;"]
["·        Период (например, четверть, триместр, полугодие и т.п.)."]
["4. Примерный график содержит следующие заполняемые поля в левой и центральной частях таблицы:"]
["·        Класс (с указанием буквы);"]
["·        Форма освоения учебной программы (базовая подготовка или профильная и т.п.)"]
["·        Количество ОП за заполняемый период;"]
["·        Ячейки с указанием календарных месяца и дней."]
["5. Кроме этого примерный график содержит следующие поля со справочной информацией:"]
["·        Список некоторых пунктов рекомендаций Федеральной службы по надзору в сфере образования и науки;"]
["·        Определение ОП согласно рекомендациям Федеральной службы по надзору в сфере образования и науки;"]
["·        Список ОП согласно рекомендациям Федеральной службы по надзору в сфере образования и науки."]
["6. Рекомендуется заполнять график с указанием наименования ОП и предмета оценочной процедуры (при наличии таковой возможности), например, «КР, рус.» или «ВПР».  Для удобства работы с примерным графиком ОП рекомендуется утвердить список сокращений, используемых при работе с графиком, отобразив его в верхней части графика (справа от списка уровней ОП) и/или в приказе об утверждении единого графика оценочных процедур ОО. Каждая из ОП внесенных в график оценочных процедур должна иметь цветовое обозначение, а именно: цвет «зеленый» – для ОП федерального уровня, цвет «желтый» – для ОП регионального уровня, цвет «оранжевый» – для ОП школьного уровня. Для применения цветового обозначения рекомендуется использовать базовый инструмент «Цвет заливки» или «Заливка» используемого редактора таблиц."]
["7. Минимальной временной единицей заполнения является 1 календарный день (в соответствии с часть «в» пункта 2.1 рекомендаций Федеральной службы по надзору в сфере образования и науки)."]
["8. Разделение графика на четверти, триместры или полугодия является рекомендуемым для удобства навигации, чтения и заполнения графика, который составляется ОО индивидуально с учетом оснащенности и контекста ОО. При необходимости удаляются лишние строки и колонки, а также добавляются новые путем базового редактирования таблицы."]
["9. Для подсчета количества ОП за тот или иной период рекомендуется использовать формулу «СЧЁТЗ», которая подсчитывает ячейки, содержащие данные любого типа и исключает из подсчета пустые (незаполненные ячейки). Формула «СЧЁТЗ» требует указания диапазона счета, например, =СЧЁТЗ(D9:BM9). Данный пример взят из образца примерного единого графика ОП из колонки «Количество ОП в указанном периоде»."]
["10. Рекомендуется размещать сформированный график не позднее чем через 2 недели после начала учебного года либо после начала полугодия, на которое формируется график, на сайте ОО на главной странице подраздела «Документы» раздела «Сведения об образовательной организации» в виде электронного документа."]

{"sheet":"Лист1","index":2,"n_rows":0,"n_cols":0,"rows_kept":0}

{"sheet":"Лист2","index":3,"n_rows":0,"n_cols":0,"rows_kept":0}